fUSD/lending_fUSD_20250607
["ID","MTS","AMOUNT","RATE_DAILY","PERIOD"]
[364916205,1749297735471,-151.0,0.00020397,2]
[364916206,1749297735498,-182.368168,0.00020405,2]
[364916207,1749297735526,-182.368169,0.00020405,2]
[364916208,1749297735554,-151.0,0.00020491,6]
[364916209,1749297735582,-7000.0,0.0002051,2]
[364916210,1749297735611,-2000.0,0.00020516,2]
[364916211,1749297735639,-2000.0,0.00020516,2]
[364916212,1749297735667,-1021.3375797,0.00020521,2]
[364916213,1749297735693,-930.99928561,0.00020521,2]
[364916214,1749297735720,-1000.0,0.00020521,2]
[364916215,1749297735746,-1000.0,0.00020521,2]
[364916216,1749297735772,-1034.5334842,0.00020521,2]
[364916217,1749297735802,-185.707612,0.00020524,2]
[364916218,1749297735829,-185.707612,0.00020524,2]
[364916219,1749297735858,-20811.53,0.00020548,2]
[364916220,1749297735885,-184.73,0.00020548,2]
[364916221,1749297735914,-205.0,0.00020582,5]
[364916222,1749297735943,-237.0,0.000206,2]
[364916223,1749297735970,-376.0,0.000206,2]
[364916224,1749297736002,-768.0,0.000206,2]
[364916225,1749297736031,-185.707612,0.00020603,2]
[364916226,1749297736059,-185.707613,0.00020603,2]
[364916227,1749297736088,-2000.0,0.00020616,2]
[364916228,1749297736116,-2000.0,0.00020616,2]
[364916229,1749297736145,-2000.0,0.00020616,2]
[364916230,1749297736173,-18339.5739291,0.00020653,2]
[364916231,1749297736200,-2045.95118533,0.00020671,2]
[364916232,1749297736227,-155.0,0.00020682,2]
[364916233,1749297736257,-22007.17981953,0.000207,2]
[364916234,1749297736285,-166.66,0.000207,2]
[364916235,1749297736314,-151.0,0.00020711,2]
[364916236,1749297736343,-151.0,0.00020711,2]
[364916237,1749297736373,-151.0,0.00020711,2]
[364916238,1749297736400,-151.0,0.00020711,2]
[364916239,1749297736429,-695.02524909,0.00020711,2]
[364916240,1749297736456,-500.0,0.00020711,2]
[364916241,1749297736484,-500.0,0.00020711,2]
[364916242,1749297736512,-513.7718156,0.00020711,2]
[364916243,1749297736542,-1000.0,0.00020711,2]
[364916244,1749297736576,-1000.0,0.00020711,2]
[364916245,1749297736605,-1000.0,0.00020711,2]
[364916246,1749297736633,-1000.0,0.00020711,2]
[364916247,1749297736662,-600.0,0.00020711,2]
[364916248,1749297736690,-1000.0,0.00020711,2]
[364916249,1749297736717,-1000.0,0.00020711,2]
[364916250,1749297736748,-1000.0,0.00020711,2]
[364916251,1749297736777,-600.0,0.00020711,2]
[364916252,1749297736806,-600.0,0.00020711,2]
[364916253,1749297736836,-1000.0,0.00020711,2]
[364916254,1749297736865,-600.0,0.00020711,2]
[364916255,1749297736893,-1000.0,0.00020711,2]
[364916256,1749297736921,-833.11334523,0.00020711,2]
[364916257,1749297736949,-600.0,0.00020711,2]
[364916258,1749297736977,-1000.0,0.00020711,2]
[364916259,1749297737005,-600.0,0.00020711,2]
[364916260,1749297737033,-600.0,0.00020711,2]
[364916261,1749297737061,-600.0,0.00020711,2]
[364916262,1749297737089,-1000.0,0.00020711,2]
[364916263,1749297737117,-600.0,0.00020711,2]
[364916264,1749297737156,-600.0,0.00020711,2]
[364916265,1749297737186,-1000.0,0.00020711,2]
[364916266,1749297737214,-600.0,0.00020711,2]
[364916267,1749297737241,-600.0,0.00020711,2]
[364916268,1749297737272,-600.0,0.00020711,2]
[364916269,1749297737300,-600.0,0.00020711,2]
[364916270,1749297737328,-600.0,0.00020711,2]
[364916271,1749297737355,-1047.21468164,0.00020711,2]
[364916272,1749297737611,-600.0,0.00020711,2]
[364916273,1749297737644,-600.0,0.00020711,2]
[364916274,1749297737673,-600.0,0.00020711,2]
[364916275,1749297737702,-600.0,0.00020711,2]
[364916276,1749297737732,-600.0,0.00020711,2]
[364916277,1749297737760,-680.57088092,0.00020711,2]
[364916278,1749297737789,-600.0,0.00020711,2]
[364916279,1749297737818,-600.0,0.00020711,2]
[364916280,1749297737847,-600.0,0.00020711,2]
[364916281,1749297737876,-510.58940832,0.00020711,2]
[364916282,1749297737904,-1300.0,0.00020711,2]
[364916283,1749297737932,-600.0,0.00020711,2]
[364916284,1749297737960,-1300.0,0.00020711,2]
[364916285,1749297737988,-600.0,0.00020711,2]
[364916286,1749297738016,-1300.0,0.00020711,2]
[364916287,1749297738046,-733.76508247,0.00020711,2]
[364916288,1749297738076,-1300.0,0.00020711,2]
[364916289,1749297738105,-600.0,0.00020711,2]
[364916290,1749297738133,-1300.0,0.00020711,2]
[364916291,1749297738167,-600.0,0.00020711,2]
[364916292,1749297738197,-600.0,0.00020711,2]
[364916293,1749297738226,-1300.0,0.00020711,2]
[364916294,1749297738258,-600.0,0.00020711,2]
[364916295,1749297738289,-1300.0,0.00020711,2]
[364916296,1749297738319,-600.0,0.00020711,2]
[364916297,1749297738350,-1300.0,0.00020711,2]
[364916298,1749297738380,-600.0,0.00020711,2]
[364916299,1749297738410,-1300.0,0.00020711,2]
[364916300,1749297738442,-600.0,0.00020711,2]
[364916301,1749297738473,-1300.0,0.00020711,2]
[364916302,1749297738503,-600.0,0.00020711,2]
[364916303,1749297738535,-1300.0,0.00020711,2]
[364916304,1749297738565,-600.0,0.00020711,2]
[364916305,1749297738595,-1300.0,0.00020711,2]
[364916306,1749297738623,-600.0,0.00020711,2]
[364916307,1749297738652,-1300.0,0.00020711,2]
[364916308,1749297738679,-600.0,0.00020711,2]
[364916309,1749297738707,-2157.76685905,0.00020711,2]
[364916310,1749297738741,-600.0,0.00020711,2]
[364916311,1749297738772,-600.0,0.00020711,2]
[364916312,1749297738806,-710.90449391,0.00020711,2]
[364916313,1749297738837,-36918.87485656,0.00020767,2]
[364916314,1749297738867,-168.3888056,0.00020822,2]
[364916315,1749297738899,-1000.0,0.000209,2]
[364916316,1749297738928,-600.0,0.000209,2]
[364916317,1749297738957,-500.0,0.000209,2]
[364916318,1749297738986,-1000.0,0.000209,2]
[364916319,1749297739014,-500.0,0.000209,2]
[364916320,1749297739043,-1000.0,0.000209,2]
[364916321,1749297739073,-600.0,0.000209,2]
[364916322,1749297739101,-1000.0,0.000209,2]
[364916323,1749297739129,-600.0,0.000209,2]
[364916324,1749297739157,-1000.0,0.000209,2]
[364916325,1749297739185,-1000.0,0.000209,2]
[364916326,1749297739212,-600.0,0.000209,2]
[364916327,1749297739241,-1000.0,0.000209,2]
[364916328,1749297739273,-600.0,0.000209,2]
[364916329,1749297739301,-1000.0,0.000209,2]
[364916330,1749297739341,-600.0,0.000209,2]
[364916331,1749297739376,-1000.0,0.000209,2]
[364916332,1749297739406,-1000.0,0.000209,2]
[364916333,1749297739437,-600.0,0.000209,2]
[364916334,1749297739468,-500.0,0.000209,2]
[364916335,1749297739498,-1000.0,0.000209,2]
[364916336,1749297739527,-365.1737934,0.000209,2]
[364916337,1749297739557,-600.0,0.000209,2]
[364916338,1749297739587,-500.0,0.000209,2]
[364916339,1749297739619,-600.0,0.000209,2]
[364916340,1749297739649,-500.0,0.000209,2]
[364916341,1749297739678,-600.0,0.000209,2]
[364916342,1749297739709,-1000.0,0.000209,2]
[364916343,1749297739738,-600.0,0.000209,2]
[364916344,1749297739768,-600.0,0.000209,2]
[364916345,1749297739798,-1000.0,0.000209,2]
[364916346,1749297739828,-600.0,0.000209,2]
[364916347,1749297739855,-600.0,0.000209,2]
[364916348,1749297739886,-1000.0,0.000209,2]
[364916349,1749297739915,-600.0,0.000209,2]
[364916350,1749297739944,-600.0,0.000209,2]
[364916351,1749297739974,-600.0,0.000209,2]
[364916352,1749297740004,-600.0,0.000209,2]
[364916353,1749297740033,-600.0,0.000209,2]
[364916354,1749297740062,-600.0,0.000209,2]
[364916355,1749297740093,-600.0,0.000209,2]
[364916356,1749297740122,-600.0,0.000209,2]
[364916357,1749297740153,-600.0,0.000209,2]
[364916358,1749297740183,-600.0,0.000209,2]
[364916359,1749297740213,-600.0,0.000209,2]
[364916360,1749297740241,-1300.0,0.000209,2]
[364916361,1749297740273,-307.06813229,0.000209,2]
[364916362,1749297740303,-600.0,0.000209,2]
[364916363,1749297740332,-1300.0,0.000209,2]
[364916364,1749297740360,-500.0,0.000209,2]
[364916365,1749297740388,-600.0,0.000209,2]
[364916366,1749297740417,-600.0,0.000209,2]
[364916367,1749297740452,-1300.0,0.000209,2]
[364916368,1749297740481,-164.73071426,0.000209,2]
[364916369,1749297740511,-600.0,0.000209,2]
[364916370,1749297740540,-1300.0,0.000209,2]
[364916371,1749297740570,-600.0,0.000209,2]
[364916372,1749297740599,-1300.0,0.000209,2]
[364916373,1749297740628,-600.0,0.000209,2]
[364916374,1749297740657,-1300.0,0.000209,2]
[364916375,1749297740685,-600.0,0.000209,2]
[364916376,1749297740713,-1300.0,0.000209,2]
[364916377,1749297740744,-600.0,0.000209,2]
[364916378,1749297740773,-1300.0,0.000209,2]
[364916379,1749297740992,-1300.0,0.000209,2]
[364916380,1749297741021,-600.0,0.000209,2]
[364916381,1749297741049,-600.0,0.000209,2]
[364916382,1749297741076,-1300.0,0.000209,2]
[364916383,1749297741103,-161.0810251,0.000209,2]
[364916384,1749297741130,-600.0,0.000209,2]
[364916385,1749297741158,-1300.0,0.000209,2]
[364916386,1749297741185,-600.0,0.000209,2]
[364916387,1749297741213,-1300.0,0.000209,2]
[364916388,1749297741240,-600.0,0.000209,2]
[364916389,1749297741272,-500.0,0.000209,2]
[364916390,1749297741304,-1300.0,0.000209,2]
[364916391,1749297741336,-501.95866493,0.000209,2]
[364916392,1749297741368,-1300.0,0.000209,2]
[364916393,1749297741396,-500.0,0.000209,2]
[364916394,1749297741424,-600.0,0.000209,2]
[364916395,1749297741451,-600.0,0.000209,2]
[364916396,1749297741481,-600.0,0.000209,2]
[364916397,1749297741508,-164.96451261,0.000209,2]
[364916398,1749297741539,-600.0,0.000209,2]
[364916399,1749297741566,-500.0,0.000209,2]
[364916400,1749297741596,-656.01818502,0.000209,2]
[364916401,1749297741625,-500.0,0.000209,2]
[364916402,1749297741653,-600.0,0.000209,2]
[364916403,1749297741681,-500.0,0.000209,2]
[364916404,1749297741708,-600.0,0.000209,2]
[364916405,1749297741736,-500.0,0.000209,2]
[364916406,1749297741763,-500.0,0.000209,2]
[364916407,1749297741792,-500.0,0.000209,2]
[364916408,1749297741819,-600.0,0.000209,2]
[364916409,1749297741846,-500.0,0.000209,2]
[364916410,1749297741875,-500.0,0.000209,2]
[364916411,1749297741909,-894.75325653,0.000209,2]
[364916412,1749297741939,-600.0,0.000209,2]
[364916413,1749297741968,-500.0,0.000209,2]
[364916414,1749297741997,-965.91941016,0.000209,2]
[364916415,1749297742028,-600.0,0.000209,2]
[364916416,1749297742056,-500.0,0.000209,2]
[364916417,1749297742083,-600.0,0.000209,2]
[364916418,1749297742111,-500.0,0.000209,2]
[364916419,1749297742139,-600.0,0.000209,2]
[364916420,1749297742169,-500.0,0.000209,2]
[364916421,1749297742198,-500.0,0.000209,2]
[364916422,1749297742226,-600.0,0.000209,2]
[364916423,1749297742256,-506.67148988,0.000209,2]
[364916424,1749297742284,-600.0,0.000209,2]
[364916425,1749297742312,-600.0,0.000209,2]
[364916426,1749297742342,-877.80222551,0.000209,2]
[364916427,1749297742370,-600.0,0.000209,2]
[364916428,1749297742397,-600.0,0.000209,2]
[364916429,1749297742426,-600.0,0.000209,2]
[364916430,1749297742460,-600.0,0.000209,2]
[364916431,1749297742514,-600.0,0.000209,2]
[364916432,1749297742561,-600.0,0.000209,2]
[364916433,1749297742606,-810.81185913,0.000209,2]
[364916434,1749297742652,-600.0,0.000209,2]
[364916435,1749297742700,-600.0,0.000209,2]
[364916436,1749297742745,-600.0,0.000209,2]
[364916437,1749297742791,-600.0,0.000209,2]
[364916438,1749297742847,-600.0,0.000209,2]
[364916439,1749297742888,-600.0,0.000209,2]
[364916440,1749297742927,-600.0,0.000209,2]
[364916441,1749297742972,-600.0,0.000209,2]
[364916442,1749297743014,-768.91532597,0.000209,2]
[364916443,1749297743058,-69211.76255161,0.000209,30]
[364916444,1749297743101,-151.0,0.000209,2]
[364916445,1749297743143,-162.43,0.00020923,2]
[364916446,1749297743185,-151.72516784,0.00020945,2]
[364916447,1749297743225,-151.0,0.00020945,2]
[364916448,1749297743265,-159.855648,0.00020985,2]
[364916449,1749297743307,-817.81,0.00020986,2]
[364916450,1749297743346,-19713.61549896,0.00021,2]
[364916451,1749297743385,-1159.35063879,0.00021,2]
[364916452,1749297743426,-191.34507138,0.00021,2]
[364916453,1749297743468,-200.0,0.00021,2]
[364916454,1749297743508,-151.0,0.00021,2]
[364916455,1749297743548,-151.0,0.00021,2]
[364916456,1749297743586,-151.0,0.00021,2]
[364916457,1749297743625,-151.0,0.00021,2]
[364916458,1749297743664,-600.0,0.00021,2]
[364916459,1749297743703,-600.0,0.00021,2]
[364916460,1749297743742,-271.25709803,0.00021,2]
[364916461,1749297743779,-600.0,0.00021,2]
[364916462,1749297743819,-600.0,0.00021,2]
[364916463,1749297743857,-600.0,0.00021,2]
[364916464,1749297743896,-543.48922463,0.00021,2]
[364916465,1749297743933,-600.0,0.00021,2]
[364916466,1749297743971,-500.0,0.00021,2]
[364916467,1749297744012,-600.0,0.00021,2]
[364916468,1749297744049,-600.0,0.00021,2]
[364916469,1749297744086,-600.0,0.00021,2]
[364916470,1749297744123,-500.0,0.00021,2]
[364916471,1749297744160,-500.0,0.00021,2]
[364916472,1749297744197,-600.0,0.00021,2]
[364916473,1749297744233,-600.0,0.00021,2]
[364916474,1749297744270,-500.0,0.00021,2]
[364916475,1749297744307,-500.0,0.00021,2]
[364916476,1749297744344,-500.0,0.00021,2]
[364916477,1749297744382,-600.0,0.00021,2]
[364916478,1749297744420,-600.0,0.00021,2]
[364916479,1749297744458,-500.0,0.00021,2]
[364916480,1749297744496,-500.0,0.00021,2]
[364916481,1749297744766,-500.0,0.00021,2]
[364916482,1749297744819,-600.0,0.00021,2]
[364916483,1749297744847,-600.0,0.00021,2]
[364916484,1749297744876,-500.0,0.00021,2]
[364916485,1749297744905,-600.0,0.00021,2]
[364916486,1749297744933,-500.0,0.00021,2]
[364916487,1749297744963,-600.0,0.00021,2]
[364916488,1749297744992,-500.0,0.00021,2]
[364916489,1749297745021,-600.0,0.00021,2]
[364916490,1749297745051,-500.0,0.00021,2]
[364916491,1749297745079,-600.0,0.00021,2]
[364916492,1749297745108,-526.42825822,0.00021,2]
[364916493,1749297745137,-500.0,0.00021,2]
[364916494,1749297745164,-500.0,0.00021,2]
[364916495,1749297745192,-600.0,0.00021,2]
[364916496,1749297745223,-600.0,0.00021,2]
[364916497,1749297745254,-500.0,0.00021,2]
[364916498,1749297745284,-500.0,0.00021,2]
[364916499,1749297745312,-600.0,0.00021,2]
[364916500,1749297745341,-500.0,0.00021,2]
[364916501,1749297745369,-500.0,0.00021,2]
[364916502,1749297745397,-500.0,0.00021,2]
[364916503,1749297745426,-698.83304713,0.00021,2]
[364916504,1749297745456,-600.0,0.00021,2]
[364916505,1749297745485,-600.0,0.00021,2]
[364916506,1749297745514,-600.0,0.00021,2]
[364916507,1749297745544,-600.0,0.00021,2]
[364916508,1749297745574,-500.0,0.00021,2]
[364916509,1749297745603,-500.0,0.00021,2]
[364916510,1749297745630,-500.0,0.00021,2]
[364916511,1749297745658,-600.0,0.00021,2]
[364916512,1749297745685,-600.0,0.00021,2]
[364916513,1749297745712,-300.0,0.00021,2]
[364916514,1749297745739,-207.78377336,0.00021052,7]
[364916515,1749297745765,-2500.0,0.00021064,2]
[364916516,1749297745794,-2500.0,0.00021064,2]
[364916517,1749297745821,-1500.0,0.00021068,2]
[364916518,1749297745848,-1500.0,0.00021068,2]
[364916519,1749297745877,-7000.0,0.0002113,2]
[364916520,1749297745905,-1333.33110275,0.00021164,2]
[364916521,1749297745931,-2500.0,0.00021164,2]
[364916522,1749297745959,-2500.0,0.00021164,2]
[364916523,1749297745989,-587.0,0.00021185,2]
[364916524,1749297746017,-156.587,0.00021218,2]
[364916525,1749297746045,-215.0738,0.00021218,2]
[364916526,1749297746073,-693.3919763,0.00021218,2]
[364916527,1749297746099,-166.68,0.00021218,2]
[364916528,1749297746128,-18339.5739291,0.00021304,2]
[364916529,1749297746155,-6152.43,0.0002137,2]
[364916530,1749297746181,-174.61919141,0.0002137,2]
[364916531,1749297746209,-2351.0,0.00021394,2]
[364916532,1749297746236,-151.0,0.0002145,2]
[364916533,1749297746266,-36918.87485656,0.00021456,2]
[364916534,1749297746294,-166.66,0.0002146,2]
[364916535,1749297746321,-151.0,0.00021493,2]
[364916536,1749297746351,-1000.0,0.00021523,2]
[364916537,1749297746378,-737.66748922,0.00021597,2]
[364916538,1749297746406,-159.63510569,0.00021597,2]
[364916539,1749297746433,-357.27925546,0.00021612,2]
[364916540,1749297746461,-3000.0,0.00021612,2]
[364916541,1749297746490,-2000.0,0.00021616,2]
[364916542,1749297746518,-528.54555694,0.00021616,2]
[364916543,1749297746547,-927.36,0.00021644,2]
[364916544,1749297746576,-1072.86784444,0.00021699,5]
[364916545,1749297746604,-3000.0,0.00021712,2]
[364916546,1749297746634,-3000.0,0.00021712,2]
[364916547,1749297746661,-538.65,0.00021739,2]
[364916548,1749297746690,-7000.0,0.0002176,2]
[364916549,1749297746720,-817.81,0.00021773,2]
[364916550,1749297746748,-300.3,0.00021918,2]
[364916551,1749297746776,-515.86954475,0.00021918,2]
[364916552,1749297746806,-500.0,0.00021918,2]
[364916553,1749297746836,-150.0,0.00021918,2]
[364916554,1749297746866,-181.08010149,0.00021918,2]
[364916555,1749297746896,-205.0,0.00021942,7]
[364916556,1749297746926,-507.21,0.00021945,30]
[364916557,1749297746954,-350.39756868,0.00021945,2]
[364916558,1749297746983,-18339.5739291,0.00021954,2]
[364916559,1749297747010,-159.72375857,0.00022,2]
[364916560,1749297747038,-31976.49154714,0.00022,3]
[364916561,1749297747065,-256.41133079,0.00022,12]
[364916562,1749297747092,-248.79147866,0.00022,2]
[364916563,1749297747119,-769.71850944,0.00022,7]
[364916564,1749297747147,-2653.49568353,0.00022,15]
[364916565,1749297747173,-500.0,0.00022,2]
[364916566,1749297747199,-500.0,0.00022,2]
[364916567,1749297747226,-500.0,0.00022,2]
[364916568,1749297747252,-162.43,0.00022024,2]
[364916569,1749297747283,-289.83089557,0.00022041,2]
[364916570,1749297747312,-267.63,0.000221,7]
[364916571,1749297747349,-6067.55140106,0.000221,6]
[364916572,1749297747384,-6067.55140098,0.000221,6]
[364916573,1749297747419,-6067.55140098,0.000221,6]
[364916574,1749297747454,-6067.55140098,0.000221,6]
[364916575,1749297747490,-6067.55140098,0.000221,6]
[364916576,1749297747525,-6067.55140098,0.000221,6]
[364916577,1749297747556,-233.1584599,0.0002211,2]
[364916578,1749297747585,-1515.56,0.00022133,2]
[364916579,1749297747614,-36918.87485656,0.00022144,2]
[364916580,1749297747642,-3500.0,0.0002216,2]
[364916581,1749297747672,-2500.0,0.00022164,2]
[364916582,1749297747702,-252.11,0.00022249,2]
[364916583,1749297747728,-3500.0,0.0002226,2]
[364916584,1749297747757,-2514.56068948,0.0002226,2]
[364916585,1749297747784,-151.0,0.000223,7]
[364916586,1749297747812,-151.0,0.000223,7]
[364916587,1749297747995,-151.0,0.000223,7]
[364916588,1749297748025,-264.26,0.00022372,2]
[364916589,1749297748062,-6067.55140098,0.00022452,7]
[364916590,1749297748090,-187.78006525,0.00022466,2]
[364916591,1749297748119,-34421.63422722,0.000225,2]
[364916592,1749297748146,-2045.95118533,0.00022517,2]
[364916593,1749297748173,-817.81,0.0002256,2]
[364916594,1749297748200,-162.380719,0.00022587,2]
[364916595,1749297748227,-223.0315306,0.00022587,2]
[364916596,1749297748257,-719.04747942,0.00022587,2]
[364916597,1749297748284,-1037.0,0.00022588,2]
[364916598,1749297748314,-18339.5739291,0.00022605,2]
[364916599,1749297748346,-345.65,0.000227,14]
[364916600,1749297748376,-345.6452,0.000227,14]
[364916601,1749297748404,-1870.9190012,0.00022708,2]
[364916602,1749297748433,-507.60023049,0.0002271,2]
[364916603,1749297748463,-151.0,0.00022712,7]
[364916604,1749297748491,-1556.88832092,0.00022712,2]
[364916605,1749297748519,-2341.26404043,0.00022808,2]
[364916606,1749297748547,-4000.0,0.00022821,4]
[364916607,1749297748576,-36918.87485656,0.00022833,2]
[364916608,1749297748606,-2028.57330315,0.00022898,2]
[364916609,1749297748637,-11177.79859754,0.00023,15]
[364916610,1749297748665,-6645.34868246,0.00023,60]
[364916611,1749297748694,-292.6370141,0.00023,7]
[364916612,1749297748723,-1509.89520722,0.00023,2]
[364916613,1749297748752,-282.2661327,0.00023,2]
[364916614,1749297748780,-345.65,0.00023,14]
[364916615,1749297748811,-350.0,0.00023,2]
[364916616,1749297748839,-162.38071902,0.00023014,2]
[364916617,1749297748868,-200.0,0.000231,7]
[364916618,1749297748897,-538.65,0.00023109,2]
[364916619,1749297748926,-388.0,0.0002312,2]
[364916620,1749297748954,-162.43,0.00023125,2]
[364916621,1749297748982,-50634.49264025,0.000232,2]
[364916622,1749297749011,-345.65,0.000232,14]
[364916623,1749297749044,-6067.55140098,0.0002321,8]
[364916624,1749297749072,-151.0,0.00023214,7]
[364916625,1749297749101,-151.0,0.00023214,7]
[364916626,1749297749129,-151.0,0.00023214,7]
[364916627,1749297749157,-18339.5739291,0.00023256,2]
[364916628,1749297749184,-205.0,0.00023301,9]
[364916629,1749297749211,-817.81,0.00023347,2]
[364916630,1749297749239,-3292.0,0.00023463,2]
[364916631,1749297749267,-200.0,0.000235,2]
[364916632,1749297749293,-345.65,0.000235,14]
[364916633,1749297749323,-200.0,0.0002351,7]
[364916634,1749297749355,-36918.87485656,0.00023522,2]
[364916635,1749297749384,-1000.0,0.00023676,2]
[364916636,1749297749411,-150.0,0.00023799,2]
[364916637,1749297749438,-150.0,0.00023799,2]
[364916638,1749297749465,-150.0,0.00023799,2]
[364916639,1749297749493,-150.0,0.00023799,2]
[364916640,1749297749520,-345.65,0.000238,14]
[364916641,1749297749547,-486.53,0.00023836,2]
[364916642,1749297749576,-2384.03173568,0.0002389,2]
[364916643,1749297749605,-4900.0,0.000239,8]
[364916644,1749297749630,-35126.65907264,0.000239,2]
[364916645,1749297749658,-2299.83968959,0.00023907,2]
[364916646,1749297782375,-195.22222241,0.0001674,2]
[364916647,1749297782398,-1458.44,0.0001674,2]
[364916648,1749297782420,-277.47,0.00017619,2]
[364916649,1749297782443,-207.4,0.0001808,2]
[364916650,1749297782466,-217.41764887,0.0001808,2]
[364916651,1749297782487,-250.0,0.00018581,2]
[364916652,1749297782510,-250.0,0.00018641,2]
[364916653,1749297782531,-1000.0,0.000187,2]
[364916654,1749297782552,-250.0,0.00018718,2]
[364916655,1749297782574,-1022.65582116,0.0001873,2]
[364916656,1749297782595,-300.0,0.00018742,2]
[364916657,1749297782618,-5000.0,0.00018743,2]
[364916658,1749297782641,-150.0,0.00018773,2]
[364916659,1749297782663,-500.0,0.00018789,2]
[364916660,1749297782685,-300.0,0.00018789,2]
[364916661,1749297782709,-500.0,0.00018789,2]
[364916662,1749297782732,-300.0,0.00018789,2]
[364916663,1749297782754,-300.0,0.00018789,2]
[364916664,1749297782777,-500.0,0.00018789,2]
[364916665,1749297782989,-300.0,0.00018789,2]
[364916666,1749297783015,-500.0,0.00018789,2]
[364916667,1749297783039,-300.0,0.00018789,2]
[364916668,1749297783065,-500.0,0.00018789,2]
[364916669,1749297783089,-300.0,0.00018789,2]
[364916670,1749297783114,-500.0,0.00018789,2]
[364916671,1749297783139,-300.0,0.00018789,2]
[364916672,1749297783178,-500.0,0.00018789,2]
[364916673,1749297783205,-300.0,0.00018789,2]
[364916674,1749297783229,-500.0,0.00018789,2]
[364916675,1749297783254,-369.62050543,0.00018789,2]
[364916676,1749297783282,-500.0,0.00018789,2]
[364916677,1749297783307,-500.0,0.00018789,2]
[364916678,1749297783331,-500.0,0.00018789,2]
[364916679,1749297783357,-500.0,0.00018789,2]
[364916680,1749297783382,-500.0,0.00018789,2]
[364916681,1749297783410,-500.0,0.00018789,2]
[364916682,1749297783437,-500.0,0.00018789,2]
[364916683,1749297783462,-1000.0,0.00018789,2]
[364916684,1749297783485,-151.0,0.00018789,2]
[364916685,1749297783509,-668.65185757,0.00018789,2]
[364916686,1749297783532,-500.0,0.00018789,2]
[364916687,1749297783556,-500.0,0.00018789,2]
[364916688,1749297783579,-500.0,0.00018789,2]
[364916689,1749297783603,-500.0,0.00018789,2]
[364916690,1749297783627,-500.0,0.00018789,2]
[364916691,1749297783651,-500.0,0.00018789,2]
[364916692,1749297783680,-500.0,0.00018789,2]
[364916693,1749297783705,-500.0,0.00018789,2]
[364916694,1749297783731,-500.0,0.00018789,2]
[364916695,1749297783758,-500.0,0.00018789,2]
[364916696,1749297783783,-500.0,0.00018789,2]
[364916697,1749297783807,-500.0,0.00018789,2]
[364916698,1749297783832,-179.340194,0.00018808,2]
[364916699,1749297783856,-151.0,0.00018808,2]
[364916700,1749297783881,-151.0,0.00018808,2]
[364916701,1749297783907,-151.0,0.00018808,2]
[364916702,1749297783931,-151.0,0.00018808,2]
[364916703,1749297783956,-151.85797,0.00018808,2]
[364916704,1749297783981,-151.0,0.00018808,2]